[Event "Romanian Team Blitz Women 2022"]
[Site "Sebes"]
[Date "2022.12.04"]
[Round "1.5"]
[White "Chicarosie, Ioana-Bianca"]
[Black "Ionescu, Irina"]
[Result "1/2-1/2"]
[ECO "D12"]
[WhiteElo "1815"]
[BlackElo "2119"]
[Annotator "TA"]
[PlyCount "122"]
[EventDate "2022.12.04"]
[EventType "blitz"]
[EventCountry "ROU"]
[SourceTitle "playchess.com"]
[Source "ChessBase"]
[SourceQuality "1"]
[TimeControl "180+2"]

{[%evp 10,122,2,0,-4,-11,-12,-28,-11,-68,-25,-44,-18,-18,-18,-39,-23,-53,0,0,0,-14,0,-139,-130,-141,-134,-143,-151,-143,-125,-115,-93,-131,-136,-136,-126,-162,-159,-158,-143,-157,-132,-140,-102,-144,-101,-126,-122,-143,-139,-187,-179,-185,-166,-190,-184,-192,-131,-168,-115,-174,-145,-154,-116,-166,-105,-339,-229,-214,-152,-220,-145,-129,-139,-122,-99,-204,-158,-252,-143,-308,-265,-260,-252,-238,-215,-182,-126,-223,-140,-130,-130,-285,-153,-205,-112,-112,0,-215,0,-112,0,-210,0,-193,-193,-212,-160,-172,-160,-243,-186,-218,-172]} 1. d4 {[%emt 0:00:02]} d5 {[%emt 0:00:03]} 2. Nf3 {[%emt 0:00:01]} Nf6 {[%emt 0:00:01]} 3. Nbd2 {[%emt 0:00:03]} c6 {[%emt 0:00:09]} 4. e3 {[%emt 0:00:05]} Bf5 {[%emt 0:00:08]} 5. c4 {[%emt 0:00:15]} e6 {[%emt 0:00:03]} 6. Be2 {[%emt 0:00:17]} h6 {[%emt 0:00:06] D12: Slav Defence: 3 Nf3 Nf6 4 e3 Bf5.} 7. Qb3 {[%emt 0:00:26]} Qb6 {[%emt 0:00:22] [#]} 8. c5 $146 {[%emt 0:00:02]} ({Predecessor:} 8. O-O Nbd7 9. a4 a5 10. c5 Qc7 11. Bd3 g6 12. Re1 b6 13. cxb6 Qxb6 14. Qxb6 Nxb6 15. Bxf5 gxf5 {0-1 (43) Vestby Ellingsen,M (2371)-Sarana,A (2675) Chess.com INT 2022}) 8... Qc7 {[%emt 0:00:03] Black has an edge.} 9. Ne5 {[%emt 0:00:25]} (9. Bd3 $11) 9... Be7 {[%emt 0:00:07]} (9... b6 {seems wilder.} 10. e4 dxe4 11. Qg3 bxc5 12. dxc5 e3) 10. Bd3 {[%emt 0:00:09]} Nbd7 {[%emt 0:00:23]} 11. Bxf5 {[%emt 0:00:25]} exf5 {[%emt 0:00:02]} 12. Ndf3 {[%emt 0:00:04]} (12. Nxd7 {simplifies} Qxd7 13. O-O O-O 14. Qc2) 12... O-O {[%emt 0:00:10]} (12... Nxe5 $5 13. Nxe5 Bxc5 $1 $15) 13. Qc2 {[%emt 0:00:07]} Ne4 {[%emt 0:00:19][%cal Re7c5]} (13... Bxc5 {simplifies} 14. Nxc6 Qxc6 15. dxc5 Qxc5 16. Qxc5 Nxc5 17. Nd4 g6) 14. Nxd7 {[%emt 0:00:11]} Qxd7 {[%emt 0:00:01]} 15. Ne5 {[%emt 0:00:05]} Qe6 {[%emt 0:00:15][%cal Oe7c5]} 16. f3 {[%emt 0:00:06] [#]} (16. Nd3 $11 {remains equal.}) 16... Nxc5 $1 $17 {[%emt 0:00:06][%mdl 512]} 17. O-O {[%emt 0:00:11]} (17. Bd2 Nd7) 17... Nd7 {[%emt 0:00:02]} 18. Nxd7 {[%emt 0:00:10]} Qxd7 {[%emt 0:00:01]} 19. Bd2 {[%emt 0:00:02]} b6 {[%emt 0:00:09]} 20. b4 {[%emt 0:00:06]} a5 {[%emt 0:00:04]} 21. a3 {[%emt 0:00:10]} axb4 {[%emt 0:00:02]} 22. axb4 {[%emt 0:00:05]} Rac8 {[%emt 0:00:04]} 23. Qb2 {[%emt 0:00:03]} Bf6 {[%emt 0:00:05]} 24. Bc3 {[%emt 0:00:06]} Qd6 {[%emt 0:00:07]} 25. Ra6 {[%emt 0:00:03]} Qc7 {[%emt 0:00:13]} 26. Rfa1 {[%emt 0:00:02]} Rb8 {[%emt 0:00:01]} 27. Qc2 {[%emt 0:00:04]} g6 {[%emt 0:00:03]} 28. Qd3 {[%emt 0:00:04]} Rfe8 {[%emt 0:00:06]} 29. g3 {[%emt 0:00:03]} Qe7 {[%emt 0:00:12]} 30. Bd2 {[%emt 0:00:01] [#]} (30. Re1 $17) 30... c5 $1 $19 {[%emt 0:00:02]} 31. bxc5 {[%emt 0:00:03]} bxc5 {[%emt 0:00:01]} 32. R6a5 {[%emt 0:00:04]} cxd4 {[%emt 0:00:04]} 33. exd4 {[%emt 0:00:01]} Qd7 {[%emt 0:00:06]} (33... Qe2 $19 34. Qxe2 Rxe2) 34. Ra7 {[%emt 0:00:03]} Rb7 {[%emt 0:00:01]} (34... Qb5 $19 35. Qxb5 Bxd4+ 36. Kf1 Rxb5) 35. R7a2 {[%emt 0:00:04]} (35. Rxb7 $17 Qxb7 36. Ra5) 35... Kg7 {[%emt 0:00:04]} 36. Kg2 {[%emt 0:00:00]} Qe7 {[%emt 0:00:02]} 37. Kf2 {[%emt 0:00:02] Inhibits Qe2+.} (37. Re1 $17 Qd7 38. Rxe8 Qxe8 39. Be3) 37... Bg5 {[%emt 0:00:09]} (37... Reb8 $19 38. Re1 Qd8) 38. Ra5 $2 {[%emt 0:00:02]} (38. Re1 $17 Qd7 39. Rxe8 Qxe8 40. Qe2) 38... Bxd2 {[%emt 0:00:03]} 39. Qxd2 {[%emt 0:00:01]} Qd7 {[%emt 0:00:06][%cal Of5f4]} 40. R1a2 {[%emt 0:00:02]} (40. R5a2 $17 {is a better defense.}) 40... Qc6 {[%emt 0:00:01]} 41. Rc5 {[%emt 0:00:01]} Qd6 {[%emt 0:00:01]} 42. Rac2 {[%emt 0:00:01]} Rbe7 {[%emt 0:00:02]} (42... Rb3 {simplifies} 43. R5c3 Rxc3 44. Qxc3 Qa6) 43. Rc6 {[%emt 0:00:02]} (43. Qa5 $17) 43... Qd8 {[%emt 0:00:05]} 44. h3 {[%emt 0:00:03]} (44. Qc1 $17 {was worth a try.}) 44... g5 {[%emt 0:00:11]} (44... Re3 $19 {[%cal Of5f4] Threatens to win with ...f4!} 45. f4 (45. Qxe3 $2 {loses.} Rxe3 46. Kxe3 Qg5+ 47. Kf2 f4 $19) 45... Qe7) 45. R2c5 $2 {[%emt 0:00:03] Against f4} (45. Qb4 $17 {was called for.}) 45... Re2+ {[%emt 0:00:03]} 46. Qxe2 {[%emt 0:00:02]} Rxe2+ {[%emt 0:00:00]} 47. Kxe2 {[%emt 0:00:01][%mdl 4096] Endgame KQ-KRR} Qe8+ {[%emt 0:00:02]} 48. Kf2 {[%emt 0:00:00]} Qa8 {[%emt 0:00:01]} ({Black should try} 48... Qb8 $19 49. Rc2 h5) 49. Rc8 {[%emt 0:00:03] Prevents h5.} (49. g4 $17) 49... Qa2+ {[%emt 0:00:02]} 50. Rc2 {[%emt 0:00:01]} Qa1 {[%emt 0:00:00][%cal Oa1h1]} 51. R8c3 $2 {[%emt 0:00:03]} (51. Kg2 $17) 51... Qa4 {[%emt 0:00:02]} ({Better is} 51... Qh1 $19 {And now ...Qh2+ would win.} 52. f4 Qxh3) 52. Ke3 {[%emt 0:00:01]} (52. Rd2 $17) 52... Qe8+ {[%emt 0:00:03]} (52... Qb4 $19 53. Rc1 Qd6) 53. Kf2 $17 {[%emt 0:00:01]} Qa4 {[%emt 0:00:01]} (53... f4 $17 54. gxf4 gxf4) 54. Ke3 $1 $19 {[%emt 0:00:01]} Qe8+ {[%emt 0:00:01]} (54... Qb4 $19 55. Rc1 Qd6) 55. Kf2 $17 {[%emt 0:00:01]} Qa4 {[%emt 0:00:02]} (55... f4 $17 56. gxf4 gxf4) 56. Ke3 $1 $19 {[%emt 0:00:02]} Qa1 {[%emt 0:00:01]} ({Black should play} 56... Qb4 $19 {...h5 is the strong threat.} 57. Rc1 h5) 57. Rc1 $2 {[%emt 0:00:01]} (57. Kf2 $1 $11 {and White is okay.}) 57... Qb2 {[%emt 0:00:02] Black is clearly better.} 58. R1c2 {[%emt 0:00:02] Against Qg2} Qb1 {[%emt 0:00:01]} 59. Rc1 {[%emt 0:00:00] Inhibits Qe1+.} Qb6 {[%emt 0:00:02]} 60. Rc5 {[%emt 0:00:03]} (60. h4 $17) 60... Qb3+ {[%emt 0:00:02]} 61. R1c3 {[%emt 0:00:01]} Qb1 {[%emt 0:00:14] Weighted Error Value: White=0.42/Black=0.50} 1/2-1/2

[Event "Romanian Team Blitz Women 2022"]
[Site "Sebes"]
[Date "2022.12.04"]
[Round "1.6"]
[White "Schiopu, Andreea-Alexandra"]
[Black "Hoanca, Alexia-Ioana"]
[Result "1-0"]
[ECO "D02"]
[WhiteElo "1716"]
[BlackElo "1644"]
[Annotator "NA RC COMBH"]
[PlyCount "123"]
[EventDate "2022.12.04"]
[EventType "blitz"]
[EventCountry "ROU"]
[SourceTitle "playchess.com"]
[Source "ChessBase"]
[SourceQuality "1"]
[TimeControl "180+2"]

1. Nf3 {[%emt 0:00:02]} Nf6 {[%emt 0:00:01]} 2. d4 {[%emt 0:00:01]} c5 {[%emt 0:00:01]} 3. c3 {[%emt 0:00:01]} b6 {[%emt 0:00:01]} 4. Bf4 {[%emt 0:00:01]} Bb7 {[%emt 0:00:01]} 5. e3 {[%emt 0:00:01]} g6 {[%emt 0:00:01]} 6. Be2 {[%emt 0:00:01]} Bg7 {[%emt 0:00:01]} 7. Nbd2 {[%emt 0:00:04]} O-O {[%emt 0:00:01]} 8. O-O {[%emt 0:00:01]} d5 {[%emt 0:00:03]} 9. h3 {[%emt 0:00:01]} Nbd7 {[%emt 0:03:10]} 10. Bh2 {[%emt 0:00:09]} Ne4 {[%emt 0:00:00]} 11. Bd3 {[%emt 0:00:18]} Nxd2 {[%emt 0:00:00]} 12. Qxd2 {[%emt 0:00:04]} Re8 {[%emt 0:00:00]} 13. Rfd1 {[%emt 0:00:17]} e5 {[%emt 0:00:00]} 14. dxe5 {[%emt 0:00:15]} Nxe5 {[%emt 0:00:00]} 15. Nxe5 {[%emt 0:00:10]} Bxe5 {[%emt 0:00:00]} 16. Bb5 {[%emt 0:00:04]} Bxh2+ {[%emt 0:00:00]} 17. Kxh2 {[%emt 0:00:01]} Qc7+ {[%emt 0:00:00]} 18. Kg1 {[%emt 0:00:02]} Red8 {[%emt 0:00:00]} 19. Qe2 {[%emt 0:00:16]} a6 {[%emt 0:00:00]} 20. Bd3 {[%emt 0:00:02]} Rd6 {[%emt 0:00:00]} 21. Rd2 {[%emt 0:00:07]} Rad8 {[%emt 0:00:00]} 22. Bxa6 {[%emt 0:00:02]} Bxa6 {[%emt 0:00:00]} 23. Qxa6 {[%emt 0:00:01]} Qe7 {[%emt 0:00:00]} 24. Rad1 {[%emt 0:00:08]} Qe8 {[%emt 0:00:00]} 25. Qd3 {[%emt 0:00:10]} Qa4 {[%emt 0:00:00]} 26. b3 {[%emt 0:00:02]} Qe8 {[%emt 0:00:00]} 27. Qe2 {[%emt 0:00:04]} Qe5 {[%emt 0:00:00]} 28. c4 {[%emt 0:00:11]} d4 {[%emt 0:00:00]} 29. exd4 {[%emt 0:00:07]} Qxe2 {[%emt 0:00:00]} 30. Rxe2 {[%emt 0:00:01]} Rxd4 {[%emt 0:00:00]} 31. Rxd4 {[%emt 0:00:05]} Rxd4 {[%emt 0:00:00]} 32. Kh2 {[%emt 0:00:02]} Kf8 {[%emt 0:00:04]} 33. Kg3 {[%emt 0:00:02]} f5 {[%emt 0:00:09]} 34. Re6 {[%emt 0:00:39]} Rd2 {[%emt 0:00:09]} 35. Rxb6 {[%emt 0:00:04]} Rxa2 {[%emt 0:00:30]} 36. Rb5 Rb2 {[%emt 0:00:00]} 37. Kf3 {[%emt 0:00:04]} Ke7 {[%emt 0:00:00]} 38. Rb6 {[%emt 0:00:01]} Kd7 {[%emt 0:00:00]} 39. Rb5 {[%emt 0:00:03]} Kc6 {[%emt 0:00:00]} 40. Ke3 {[%emt 0:00:02]} Rc2 {[%emt 0:00:00]} 41. Rb8 {[%emt 0:00:04]} Rc3+ {[%emt 0:00:12]} 42. Kd2 Kc7 {[%emt 0:00:00]} 43. Rb5 {[%emt 0:00:02]} Rxh3 {[%emt 0:00:01]} 44. gxh3 {[%emt 0:00:01]} g5 {[%emt 0:00:01]} 45. Rxc5+ {[%emt 0:00:01]} Kd6 {[%emt 0:00:00]} 46. Rxf5 {[%emt 0:00:01]} Ke6 {[%emt 0:00:01]} 47. Rxg5 {[%emt 0:00:01]} Kd6 {[%emt 0:00:00]} 48. Rh5 {[%emt 0:00:01]} h6 {[%emt 0:00:01]} 49. Rxh6+ {[%emt 0:00:01]} Kc5 {[%emt 0:00:01]} 50. f4 {[%emt 0:00:01]} Kb4 {[%emt 0:00:00]} 51. f5 {[%emt 0:00:01]} Kxb3 {[%emt 0:00:02]} 52. c5 {[%emt 0:00:01]} Kc4 {[%emt 0:00:01]} 53. c6 {[%emt 0:00:00]} Kd4 {[%emt 0:00:01]} 54. c7 {[%emt 0:00:01]} Ke5 {[%emt 0:00:01]} 55. f6 {[%emt 0:00:02]} Kf4 {[%emt 0:00:02]} 56. c8=Q {[%emt 0:00:08]} Ke5 {[%emt 0:00:03]} 57. Qc5+ {[%emt 0:00:04]} Kf4 {[%emt 0:00:06]} 58. Qe3+ {[%emt 0:00:03]} Kf5 {[%emt 0:00:03]} 59. Rh5+ {[%emt 0:00:03]} Kxf6 {[%emt 0:00:02]} 60. Rh4 {[%emt 0:00:05]} Kf5 {[%emt 0:00:02]} 61. Rf4+ {[%emt 0:00:02]} Kg5 {[%emt 0:00:01]} 62. Qg3+ {[%emt 0:00:00]} 1-0

[Event "Romanian Team Blitz Women 2022"]
[Site "Sebes"]
[Date "2022.12.04"]
[Round "2.1"]
[White "Voicu-Jagodzinsky, Carmen"]
[Black "Sariteanu, Sabina"]
[Result "0-1"]
[ECO "B23"]
[WhiteElo "2300"]
[BlackElo "1752"]
[Annotator "TA"]
[PlyCount "66"]
[EventDate "2022.12.04"]
[EventType "blitz"]
[EventCountry "ROU"]
[SourceTitle "playchess.com"]
[Source "ChessBase"]
[SourceQuality "1"]
[TimeControl "180+2"]

{[%evp 12,66,14,5,14,16,19,12,57,26,35,7,12,-2,0,0,22,18,62,58,83,24,43,54,60,63,144,131,99,71,156,38,75,73,61,18,20,-58,72,27,39,-680,-662,-639,-561,-627,-551,-1122,-1004,-1631,-1581,-1571,-1568,-2108,-1935,-29979,-6798]} 1. e4 {[%emt 0:00:00]} c5 {[%emt 0:00:02]} 2. Nc3 {[%emt 0:00:01]} Nc6 {[%emt 0:03:04]} 3. f4 d6 {[%emt 0:00:00]} 4. Nf3 {[%emt 0:00:01]} g6 {[%emt 0:00:00]} 5. Bb5 {[%emt 0:00:01]} Bd7 {[%emt 0:00:00]} 6. O-O {[%emt 0:00:04]} Bg7 {[%emt 0:00:00]} 7. d3 {[%emt 0:00:07]} a6 {[%emt 0:00:00] B23: Closed Sicilian: Lines without g3.} 8. Bc4 {[%emt 0:00:01][%cal Oe4e5]} b5 {[%emt 0:00:00] Against e5} 9. Bb3 {[%emt 0:00:01]} Nh6 {[%emt 0:00:00] [#] The position is equal.} 10. a3 $146 {[%emt 0:00:12][%cal Of4f5]} ({Predecessor:} 10. f5 gxf5 11. Nh4 f4 12. Bxf4 Ng4 13. Nf5 Bxf5 14. exf5 h5 15. Qe1 Nd4 16. Kh1 Nxb3 17. axb3 {1-0 (25) Lupienski,E (1970)-Latas,P (2054) ICCF email 2007}) 10... O-O {[%emt 0:00:00]} 11. Qe1 {[%emt 0:00:07][%cal Of4f5]} e6 {[%emt 0:00:00] Prevents f5.} 12. Kh1 {[%emt 0:00:04][%cal Of4f5]} Kh8 {[%emt 0:00:00]} 13. h3 {[%emt 0:00:32]} Na5 {[%emt 0:00:00]} 14. Ba2 {[%emt 0:00:01]} f5 {[%emt 0:00:00]} 15. Ng5 {[%emt 0:00:10]} c4 {[%emt 0:00:00]} 16. Be3 {[%emt 0:00:21]} (16. Qh4 $16) 16... Nf7 {[%emt 0:00:00]} 17. Nf3 {[%emt 0:00:14]} Bc6 {[%emt 0:00:00]} 18. Rd1 {[%emt 0:00:15]} d5 {[%emt 0:00:00]} (18... fxe4 $14 19. dxe4 Bb7) 19. Nd4 {[%emt 0:00:06]} Qd7 {[%emt 0:00:00]} 20. e5 {[%emt 0:00:21][%cal Oc3a4]} g5 {[%emt 0:00:00]} (20... Rfc8 $142) 21. g3 {[%emt 0:00:04]} (21. fxg5 $6 Nxe5 22. Nce2 Nb7 $16) ({White should try} 21. Nce2 $16 Nb7 22. fxg5) 21... cxd3 {[%emt 0:00:00]} 22. cxd3 {[%emt 0:00:01]} Bb7 {[%emt 0:00:00]} 23. b4 {[%emt 0:00:09]} (23. fxg5 Nc6 $11) 23... Nc6 {[%emt 0:00:00]} 24. Rc1 {[%emt 0:00:05]} (24. fxg5 $2 {too greedy.} Bxe5 25. Nce2 f4 26. gxf4 (26. Bxf4 $2 {perishes.} Bxd4 27. Nxd4 Nxd4 $19) 26... Bxd4 27. Nxd4 (27. Bxd4+ $2 Nxd4 28. Nxd4 e5 $19) 27... e5 $19) ({Better is} 24. Nce2 $11) 24... Bh6 {[%emt 0:00:05]} (24... gxf4 $1 $15 {stays ahead.} 25. gxf4 Nfd8) 25. Qf2 {[%emt 0:00:01]} Rg8 {[%emt 0:00:03]} 26. Nb3 $2 {[%emt 0:00:09][%mdl 8192] [#] This move loses the game for White.} (26. Nce2 $14) 26... d4 $19 {[%emt 0:00:09]} 27. Nc5 {[%emt 0:00:02]} dxe3 {[%emt 0:00:09]} ({Stronger than} 27... Ncxe5+ 28. Kh2 dxe3 29. fxe5 exf2 30. Nxd7 $19) 28. Qxe3 {[%emt 0:00:01]} Nxb4+ {[%emt 0:00:04]} 29. Kh2 {[%emt 0:00:22]} Qc6 {[%emt 0:00:02][%csl Gb7][%cal Rc6g2] [#]} 30. Qf2 {[%emt 0:00:08] Against Qg2+} Nxa2 31. Nxa2 {[%emt 0:00:01]} gxf4 {[%emt 0:00:04]} 32. g4 {[%emt 0:00:05]} fxg4 {[%emt 0:00:24][%cal Bf5g4,Bg4g3][%mdl 32]} 33. Ne4 g3+ {[%emt 0:00:00] Weighted Error Value: White=1.29/Black=0.36} 0-1

[Event "Romanian Team Blitz Women 2022"]
[Site "Sebes"]
[Date "2022.12.04"]
[Round "2.2"]
[White "Chicarosie, Ioana-Bianca"]
[Black "Visanescu, Daria-Ioana"]
[Result "0-1"]
[ECO "E07"]
[WhiteElo "1815"]
[BlackElo "2117"]
[Annotator "TA"]
[PlyCount "98"]
[EventDate "2022.12.04"]
[EventType "blitz"]
[EventCountry "ROU"]
[SourceTitle "playchess.com"]
[Source "ChessBase"]
[SourceQuality "1"]
[TimeControl "180+2"]

{[%evp 13,98,17,19,-27,0,-7,18,4,-7,-8,10,0,53,59,71,39,54,39,48,26,21,15,92,102,108,65,497,93,95,70,127,-694,48,23,110,0,11,9,50,52,61,0,0,0,0,0,0,0,0,-17,-17,-11,-5,-709,-738,-757,-753,-912,-896,-859,-805,-808,-846,-1166,-1227,-1117,-1172,-1615,-1132,-2553,-2556,-1795,-302,-5297,-2288,-29966,-29970,-29974,-29976,-29980,-29980,-29980,-29979,-29979,-29978,-29975,-29975]} 1. d4 {[%emt 0:00:01]} d5 {[%emt 0:00:01]} 2. Nf3 {[%emt 0:00:01]} Nf6 {[%emt 0:00:01]} 3. g3 {[%emt 0:00:01]} e6 {[%emt 0:00:01]} 4. Bg2 {[%emt 0:00:01]} Be7 {[%emt 0:00:01]} 5. O-O {[%emt 0:00:02]} O-O {[%emt 0:00:00]} 6. c4 {[%emt 0:00:05]} c6 {[%emt 0:00:02]} 7. Nc3 {[%emt 0:00:08]} Nbd7 {[%emt 0:00:02]} 8. Re1 {[%emt 0:00:09] 8.Qd3 is the modern continuation. E07: Closed Catalan: Main Line (5 Nf3 0-0 6 0-0 Nbd7).} (8. Qd3 $142) 8... b6 {[%emt 0:00:06]} (8... dxc4 $5 {[%cal Rb7b5]} 9. e4 Bb4 $11) 9. e4 {[%emt 0:00:11]} dxe4 {[%emt 0:00:01]} 10. Nxe4 {[%emt 0:00:01] The position is equal.} Nxe4 11. Rxe4 {[%emt 0:00:01]} Bb7 {[%emt 0:00:03]} 12. Re1 {[%emt 0:00:05]} Nf6 {[%emt 0:00:08]} ({Better is} 12... c5 $11) 13. Ne5 $14 {[%emt 0:00:09]} Rc8 {[%emt 0:00:01] [#]} 14. Bg5 $146 {[%emt 0:00:03]} (14. Bf4 $5 {[%cal Rd1a4]}) ({Predecessor:} 14. Be3 Ba8 15. Qa4 Qc7 16. Nd3 Rfd8 17. Nb4 Bxb4 18. Qxb4 c5 19. dxc5 bxc5 20. Qc3 Rb8 21. Bf4 {1-0 (43) Smith,A (1667)-Smith,M (1673) Kingston 2018}) 14... h6 {[%emt 0:03:03]} 15. Be3 {[%emt 0:00:23]} Qc7 {[%emt 0:00:00]} 16. Qa4 {[%emt 0:00:08]} Rfd8 {[%emt 0:00:00]} 17. Rad1 {[%emt 0:00:02]} (17. Qxa7 $2 {loses.} Ra8 $19) 17... a6 {[%emt 0:00:00]} (17... Bd6 $11 {keeps the balance.}) 18. Bf4 $16 {[%emt 0:00:17][%cal Oe5f7] Hoping for Nxf7!} b5 {[%emt 0:00:00]} 19. Qc2 {[%emt 0:00:14][%cal Oe5f7] Black must now prevent Nxf7!} (19. Qb3 {simplifies} Bd6 20. c5 Bxe5 21. Bxe5 Qe7 22. a4) 19... Qb6 $2 {[%emt 0:00:00][%mdl 8192]} (19... Bb4 $14) 20. Be3 $2 {[%emt 0:00:08]} (20. c5 $18 {is more deadly.} Qa7 21. Nxf7 $1 Kxf7 22. Bh3 (22. Qe2 Re8 $16)) 20... Qa5 {[%emt 0:00:00]} 21. b3 {[%emt 0:00:04]} Ba8 {[%emt 0:00:00]} (21... Bb4 $14 22. Rf1 Qc7) 22. Rd3 $2 {[%emt 0:00:13][%mdl 8192]} Nd7 $2 {[%emt 0:00:00]} (22... Qxe1+ $19 23. Bf1 c5) 23. Bd2 {[%emt 0:00:04]} Qb6 {[%emt 0:00:00]} (23... Bb4 $11 {remains equal.}) 24. Be3 {[%emt 0:00:29]} (24. c5 $16 Qa7 25. Bf4) 24... Nxe5 {[%emt 0:00:00]} 25. dxe5 {[%emt 0:00:02]} Bc5 {[%emt 0:00:00]} 26. Rxd8+ {[%emt 0:00:35]} (26. Bxc5 {seems wilder.} Qxc5 27. Rxd8+ Rxd8 28. Rd1) 26... Rxd8 {[%emt 0:00:00]} 27. cxb5 {[%emt 0:00:03]} (27. Bxc5 $1 $14 Qxc5 28. Rd1) 27... Bxe3 {[%emt 0:00:00]} 28. Rxe3 {[%emt 0:00:02][%cal Rb5c6]} cxb5 {[%emt 0:00:00]} 29. Bxa8 {[%emt 0:00:02]} Rxa8 $14 {[%emt 0:00:00][%mdl 4096] Endgame KQR-KQR} 30. Rd3 {[%emt 0:00:02]} Rd8 {[%emt 0:00:00]} 31. Qd2 {[%emt 0:00:03]} Rxd3 {[%emt 0:00:00]} 32. Qxd3 $11 {[%emt 0:00:01] KQ-KQ} Qc7 {[%emt 0:00:00]} 33. Qd6 $2 {[%emt 0:00:08][%mdl 8192] [#]} (33. Qf3 $11) 33... Qxd6 $1 $19 {[%emt 0:00:00]} 34. exd6 {KP-KP} Kf8 35. Kf1 {[%emt 0:00:02]} Ke8 {[%emt 0:00:00]} 36. Ke2 {[%emt 0:00:00]} Kd7 {[%emt 0:00:00]} 37. Ke3 {[%emt 0:00:02]} Kxd6 {[%emt 0:00:00]} 38. Kd4 {[%emt 0:00:04]} e5+ {[%emt 0:00:00]} 39. Ke4 {[%emt 0:00:01]} g6 {[%emt 0:00:00]} 40. g4 {[%emt 0:00:03]} f6 {[%emt 0:00:08][%cal Bf7f6,Bf6f5,Bf5f4][%mdl 32] And now ...b4 would win.} 41. h4 {[%emt 0:00:03]} a5 {[%emt 0:00:05]} 42. f3 {[%emt 0:00:05]} Kc5 $2 {[%emt 0:00:02]} (42... h5 43. Kd3 hxg4 44. fxg4 f5 45. gxf5 gxf5) 43. a3 $2 {[%emt 0:00:01]} (43. g5 fxg5 44. hxg5 hxg5 45. Kxe5) 43... Kd6 {[%emt 0:00:07]} (43... b4 $142 44. a4 h5 45. gxh5 gxh5) 44. Kd3 {[%emt 0:00:02]} Kd5 {[%emt 0:00:01] Black mates.} 45. Ke3 {[%emt 0:00:05]} f5 {[%emt 0:00:01]} 46. h5 {[%emt 0:00:04]} f4+ {[%emt 0:00:32]} 47. Kd3 {[%emt 0:00:02]} gxh5 {[%emt 0:00:03]} 48. gxh5 {[%emt 0:00:01]} Ke6 {[%emt 0:00:03]} 49. Ke4 {[%emt 0:00:03]} Kf6 {[%emt 0:00:08] Black used his chance.   Weighted Error Value: White=1.10/Black=0.73} 0-1

[Event "Romanian Team Blitz Women 2022"]
[Site "Sebes"]
[Date "2022.12.04"]
[Round "2.3"]
[White "Bucur, Denisa-Andreea"]
[Black "Hoanca, Alexia-Ioana"]
[Result "0-1"]
[ECO "B14"]
[WhiteElo "1953"]
[BlackElo "1644"]
[Annotator "TA"]
[PlyCount "48"]
[EventDate "2022.12.04"]
[EventType "blitz"]
[EventCountry "ROU"]
[SourceTitle "playchess.com"]
[Source "ChessBase"]
[SourceQuality "1"]
[TimeControl "180+2"]

{[%evp 15,47,15,19,-34,-32,-50,-53,-52,-38,-204,-175,-226,-239,-230,-231,-227,-212,-211,-152,-177,-183,-280,-252,-779,-384,-361,-256,-832,-237,-294,-290,-291,-264,-29999]} 1. c4 {[%emt 0:00:01]} c5 {[%emt 0:00:01]} 2. Nf3 {[%emt 0:00:03]} Nf6 {[%emt 0:00:01]} 3. e3 {[%emt 0:00:02]} Nc6 {[%emt 0:00:04]} 4. d4 {[%emt 0:00:04]} cxd4 {[%emt 0:00:01]} 5. exd4 {[%emt 0:00:01]} d5 {[%emt 0:00:01]} 6. c5 {[%emt 0:00:10]} e6 {[%emt 0:00:03]} 7. Nc3 {[%emt 0:00:05]} Be7 {[%emt 0:00:01]} 8. Bf4 {[%emt 0:00:13]} O-O {[%emt 0:00:59]} 9. Be2 {[%emt 0:00:10] B14: Caro-Kann: Panov-Botvinnik Attack with 5...e6 and 5...g6.} (9. Bb5 $11) 9... b6 {[%emt 0:00:12]} 10. Qa4 {[%emt 0:01:30]} Bd7 {[%emt 0:00:46]} 11. Bb5 {[%emt 0:00:03] Black is slightly better.} Rc8 {[%emt 0:00:10]} 12. Ba6 $2 {[%emt 0:00:14] [#]} (12. cxb6 $15 Qxb6 13. O-O) 12... Nb8 $19 {[%emt 0:00:25] [#]} 13. Qa3 $146 {[%emt 0:00:29]} (13. Bb5 {was necessary.}) ({Predecessor:} 13. Bb5 bxc5 14. Qxa7 cxd4 15. Nxd4 Bc5 16. Qa4 Qb6 17. Nce2 Nc6 18. Be3 Ra8 19. Qd1 {1-0 (39) Torres Moya,R (1494)-Suarez Espinosa,L (1815) Tunja 2018}) 13... Nxa6 {[%emt 0:00:05]} 14. Qxa6 {[%emt 0:00:02]} bxc5 {[%emt 0:00:03]} 15. O-O {[%emt 0:00:09]} cxd4 {[%emt 0:00:06]} 16. Nxd4 {[%emt 0:00:01]} Bc5 {[%emt 0:00:01]} 17. Nb3 {[%emt 0:00:02]} Bb6 {[%emt 0:00:06] A strong pair of Bishops.} 18. a4 {[%emt 0:00:12]} (18. Be3 $142) 18... Rc4 {[%emt 0:00:15]} 19. Bd6 {[%emt 0:00:01]} (19. a5 Bc7 20. Bxc7 Qxc7 21. Nd2) 19... Re8 {[%emt 0:00:00]} (19... Bc8 $142 20. Qxc4 dxc4 21. Bxf8 cxb3) 20. a5 {[%emt 0:00:01]} Bc7 {[%emt 0:00:01]} 21. Ba3 $2 {[%emt 0:00:07] [#]} (21. Bxc7 Qxc7 22. Nd2) 21... Bb8 $2 {[%emt 0:00:04]} (21... Bxh2+ $1 {[%mdl 512]} 22. Kxh2 Ng4+ 23. Kg3 Qg5) 22. Nd2 {[%emt 0:00:02]} Rc6 {[%emt 0:00:03]} ({Don't go for} 22... Qc7 $2 23. g3 Rc6 24. Qd3 $19) 23. Qd3 {[%emt 0:00:01]} Qc7 {[%emt 0:00:02][%csl Gb8][%cal Rc7h2]} 24. Ne2 $2 {[%emt 0:00:02]} (24. g3 $19) 24... Qxh2# {[%emt 0:00:00] White got outplayed after the opening.   Weighted Error Value: White=1.30/Black=0.78} 0-1